Workbook

Sheet Orçamentária-TR
A1: =[1]Orçamentária!A1 -> Apoio Técnico e Operacional - SINFRA
A2: =[1]Orçamentária!A2 -> PLANILHA ORÇAMENTÁRIA
A5: ITEM | B5: CÓD SINFRA | C5: DESCRIÇÃO | D5: UN | E5: QUANTIDADE | F5: VIDA ÚTIL (Anos)³ | G5: % DE DEPRECIAÇÃO MENSAL³ | H5: CUSTO UNITÁRIO4 | I5: CUSTO DIRETO | J5: VALOR MENSAL DE DEPRECIAÇÃO³ | K5: VALOR TOTAL DE DEPRECIAÇÃO PARA 30 MESES³
A6: 02.00 | C6: Sistema de Ponto Biométrico | K6: =SUBTOTAL(109,K8) -> 740.1
A7: 02.01 | C7: Sistema de Ponto Biométrico | K7: =SUBTOTAL(109,K8) -> 740.1
A8: 02.01.01 | B8: SF-00822 | C8: Relógio de ponto biométrico | D8: un | E8: =INDEX([1]Orçamentária!A:K,MATCH('Orçamentária-TR'!B8,[1]Orçamentária!A:A,0),5) -> 1 | F8: 5 | G8: =1/(12*F8) -> 0.01666666667 | H8: =INDEX([1]Orçamentária!A:K,MATCH('Orçamentária-TR'!B8,[1]Orçamentária!A:A,0),6) -> 1480.05 | J8: =IF(ISNUMBER(H8),ROUND(G8*E8*H8,2),"") -> 24.67 | K8: =IF(ISNUMBER(H8),ROUND(J8*30,2),"") -> 740.1
A9: 03.00 | C9: Ferramentas | K9: =SUBTOTAL(109,K10:K25) -> 6102
A10: 03.01 | C10: Ferramentas Elétricas | K10: =SUBTOTAL(109,K11:K25) -> 6102
A11: 03.01.01 | B11: SF-00738 | C11: Escada duplo acesso 6 degraus | D11: un | E11: =INDEX([1]Orçamentária!A:K,MATCH('Orçamentária-TR'!B11,[1]Orçamentária!A:A,0),5) -> 1 | F11: 5 | G11: =1/(12*F11) -> 0.01666666667 | H11: =INDEX([1]Orçamentária!A:K,MATCH('Orçamentária-TR'!B11,[1]Orçamentária!A:A,0),6) -> 816.45 | J11: =IF(ISNUMBER(H11),ROUND(G11*E11*H11,2),"") -> 13.61 | K11: =IF(ISNUMBER(H11),ROUND(J11*30,2),"") -> 408.3
A12: 03.01.02 | B12: SF-00739 | C12: Escada tipo tesoura e singela de fibra com 2 m | D12: un | E12: =INDEX([1]Orçamentária!A:K,MATCH('Orçamentária-TR'!B12,[1]Orçamentária!A:A,0),5) -> 1 | F12: 5 | G12: 0.01666666667 | H12: =INDEX([1]Orçamentária!A:K,MATCH('Orçamentária-TR'!B12,[1]Orçamentária!A:A,0),6) -> 741 | J12: =IF(ISNUMBER(H12),ROUND(G12*E12*H12,2),"") -> 12.35 | K12: =IF(ISNUMBER(H12),ROUND(J12*30,2),"") -> 370.5
A13: 03.01.03 | B13: SF-00746 | C13: Esquadro 300 mm | D13: un | E13: =INDEX([1]Orçamentária!A:K,MATCH('Orçamentária-TR'!B13,[1]Orçamentária!A:A,0),5) -> 2 | F13: 5 | G13: 0.01666666667 | H13: =INDEX([1]Orçamentária!A:K,MATCH('Orçamentária-TR'!B13,[1]Orçamentária!A:A,0),6) -> 42.82 | J13: =IF(ISNUMBER(H13),ROUND(G13*E13*H13,2),"") -> 1.43 | K13: 42.9
A14: 03.01.04 | B14: SF-00761 | C14: Nível manual de alumínio com base magnética 350 mm | D14: un | E14: =INDEX([1]Orçamentária!A:K,MATCH('Orçamentária-TR'!B14,[1]Orçamentária!A:A,0),5) -> 1 | F14: 5 | G14: 0.01666666667 | H14: =INDEX([1]Orçamentária!A:K,MATCH('Orçamentária-TR'!B14,[1]Orçamentária!A:A,0),6) -> 56.65 | J14: =IF(ISNUMBER(H14),ROUND(G14*E14*H14,2),"") -> 0.94 | K14: 28.2
A15: 03.01.05 | B15: SF-01042 | C15: Máquina fotográfica digital | D15: un | E15: =INDEX([1]Orçamentária!A:K,MATCH('Orçamentária-TR'!B15,[1]Orçamentária!A:A,0),5) -> 2 | F15: 10 | G15: 0.008333333333 | H15: =INDEX([1]Orçamentária!A:K,MATCH('Orçamentária-TR'!B15,[1]Orçamentária!A:A,0),6) -> 2721.1 | J15: =IF(ISNUMBER(H15),ROUND(G15*E15*H15,2),"") -> 45.35 | K15: 1360.5
A16: 03.01.06 | B16: SF-00777 | C16: Trena de 5 m | D16: un | E16: =INDEX([1]Orçamentária!A:K,MATCH('Orçamentária-TR'!B16,[1]Orçamentária!A:A,0),5) -> 28 | F16: 5 | G16: 0.01666666667 | H16: =INDEX([1]Orçamentária!A:K,MATCH('Orçamentária-TR'!B16,[1]Orçamentária!A:A,0),6) -> 21.92 | J16: =IF(ISNUMBER(H16),ROUND(G16*E16*H16,2),"") -> 10.23 | K16: 306.9
A17: 03.01.07 | B17: SF-01043 | C17: Trena de 100 m | D17: un | E17: =INDEX([1]Orçamentária!A:K,MATCH('Orçamentária-TR'!B17,[1]Orçamentária!A:A,0),5) -> 1 | F17: 10 | G17: 0.008333333333 | H17: =INDEX([1]Orçamentária!A:K,MATCH('Orçamentária-TR'!B17,[1]Orçamentária!A:A,0),6) -> 701.7 | J17: =IF(ISNUMBER(H17),ROUND(G17*E17*H17,2),"") -> 5.85 | K17: 175.5
A18: 03.01.08 | B18: SF-01044 | C18: Paquímetro digital | D18: un | E18: =INDEX([1]Orçamentária!A:K,MATCH('Orçamentária-TR'!B18,[1]Orçamentária!A:A,0),5) -> 1 | F18: 10 | G18: 0.008333333333 | H18: =INDEX([1]Orçamentária!A:K,MATCH('Orçamentária-TR'!B18,[1]Orçamentária!A:A,0),6) -> 1072.46 | J18: =IF(ISNUMBER(H18),ROUND(G18*E18*H18,2),"") -> 8.94 | K18: 268.2
A19: 03.01.09 | B19: SF-01045 | C19: Nível laser | D19: un | E19: =INDEX([1]Orçamentária!A:K,MATCH('Orçamentária-TR'!B19,[1]Orçamentária!A:A,0),5) -> 1 | F19: 10 | G19: 0.008333333333 | H19: =INDEX([1]Orçamentária!A:K,MATCH('Orçamentária-TR'!B19,[1]Orçamentária!A:A,0),6) -> 749 | J19: =IF(ISNUMBER(H19),ROUND(G19*E19*H19,2),"") -> 6.24 | K19: 187.2
A20: 03.01.10 | B20: SF-01046 | C20: Trena Laser (curto alcance) | D20: un | E20: =INDEX([1]Orçamentária!A:K,MATCH('Orçamentária-TR'!B20,[1]Orçamentária!A:A,0),5) -> 1 | F20: 10 | G20: 0.008333333333 | H20: =INDEX([1]Orçamentária!A:K,MATCH('Orçamentária-TR'!B20,[1]Orçamentária!A:A,0),6) -> 1542.29 | J20: =IF(ISNUMBER(H20),ROUND(G20*E20*H20,2),"") -> 12.85 | K20: 385.5
A21: 03.01.11 | B21: SF-01047 | C21: Trena Laser (longo alcance) | D21: cj | E21: =INDEX([1]Orçamentária!A:K,MATCH('Orçamentária-TR'!B21,[1]Orçamentária!A:A,0),5) -> 1 | F21: 10 | G21: 0.008333333333 | H21: =INDEX([1]Orçamentária!A:K,MATCH('Orçamentária-TR'!B21,[1]Orçamentária!A:A,0),6) -> 2507.49 | J21: =IF(ISNUMBER(H21),ROUND(G21*E21*H21,2),"") -> 20.9 | K21: 627
A22: 03.01.12 | B22: SF-01048 | C22: Tripé para trena laser | D22: cj | E22: =INDEX([1]Orçamentária!A:K,MATCH('Orçamentária-TR'!B22,[1]Orçamentária!A:A,0),5) -> 1 | F22: 10 | G22: 0.008333333333 | H22: =INDEX([1]Orçamentária!A:K,MATCH('Orçamentária-TR'!B22,[1]Orçamentária!A:A,0),6) -> 370.51 | J22: =IF(ISNUMBER(H22),ROUND(G22*E22*H22,2),"") -> 3.09 | K22: 92.7
A23: 03.01.13 | B23: SF-01049 | C23: Suporte universal para trena laser | D23: un | E23: =INDEX([1]Orçamentária!A:K,MATCH('Orçamentária-TR'!B23,[1]Orçamentária!A:A,0),5) -> 1 | F23: 10 | G23: 0.008333333333 | H23: =INDEX([1]Orçamentária!A:K,MATCH('Orçamentária-TR'!B23,[1]Orçamentária!A:A,0),6) -> 379.86 | J23: =IF(ISNUMBER(H23),ROUND(G23*E23*H23,2),"") -> 3.17 | K23: 95.1
A24: 03.01.14 | B24: SF-01050 | C24: Detector de 4 gases | D24: un | E24: =INDEX([1]Orçamentária!A:K,MATCH('Orçamentária-TR'!B24,[1]Orçamentária!A:A,0),5) -> 1 | F24: 10 | G24: 0.008333333333 | H24: =INDEX([1]Orçamentária!A:K,MATCH('Orçamentária-TR'!B24,[1]Orçamentária!A:A,0),6) -> 5524.36 | J24: =IF(ISNUMBER(H24),ROUND(G24*E24*H24,2),"") -> 46.04 | K24: 1381.2
A25: 03.01.15 | B25: SF-01051 | C25: Prancheta portátil A3 | D25: un | E25: =INDEX([1]Orçamentária!A:K,MATCH('Orçamentária-TR'!B25,[1]Orçamentária!A:A,0),5) -> 28 | F25: 10 | G25: 0.008333333333 | H25: =INDEX([1]Orçamentária!A:K,MATCH('Orçamentária-TR'!B25,[1]Orçamentária!A:A,0),6) -> 53.19 | J25: =IF(ISNUMBER(H25),ROUND(G25*E25*H25,2),"") -> 12.41 | K25: 372.3
B26: =SUBTOTAL(103,B6:B25) -> 16 | E26: =SUBTOTAL(109,E6:E25) -> 72 | H26: =IF(B26<>"",INDEX('[1]Custos Unitários'!A:L,MATCH(C26,'[1]Custos Unitários'!B:B,0),10),"") ->  | I26: CUSTO DIRETO
K27: =SUBTOTAL(109,K6:K25) -> 6842.1
